bitfinex/quotes_SOLUSD_20260108
["timestamp","ask_amount","ask_price","bid_price","bid_amount"]
[1767911848549,22.42790314,139.15,139.11,0.66392277]
[1767911852746,7.18683955,139.15,139.11,7.8523556]
[1767911852923,7.18638657,139.16,139.11,0.66392277]
[1767911853121,7.18566176,139.17,139.13,0.67451148]
[1767911853343,9.30672535,139.17,139.13,0.67451148]
[1767911855248,20.30566176,139.17,139.13,0.67451148]
[1767911855448,7.18566176,139.17,139.13,0.67451148]
[1767911857458,7.18566176,139.17,139.13,2.79557507]
[1767911857656,7.18566176,139.17,139.14,0.67451148]
[1767911860162,7.18566176,139.17,139.14,2.79557507]
[1767911860452,7.18566176,139.17,139.13,0.67451148]
[1767911860654,2.12106359,139.16,139.12,0.67451148]
[1767911860851,7.18566176,139.17,139.12,0.67451148]
[1767911861051,9.30672535,139.17,139.12,0.67451148]
[1767911862558,7.18566176,139.17,139.12,0.67451148]
[1767911862759,9.30672535,139.17,139.12,0.67451148]
[1767911864561,7.18566176,139.17,139.12,0.67451148]
[1767911864766,9.30672535,139.17,139.12,0.67451148]
[1767911865361,7.18566176,139.17,139.14,0.67451148]
[1767911866161,7.18566176,139.17,139.14,2.79557507]
[1767911866544,7.18566176,139.17,139.14,3.98235348]
[1767911866745,20.30494036,139.18,139.14,3.98235348]
[1767911867263,20.30494036,139.18,139.14,0.67451148]
[1767911873460,20.30494036,139.18,139.14,3.98235348]
[1767911873661,20.30494036,139.18,139.15,0.67451148]
[1767911874068,13.12,139.18,139.14,11.1690791]
[1767911874371,7.18442416,139.19,139.14,11.1690791]
[1767911874545,13.12,139.18,139.14,11.1690791]
[1767911875076,20.30499862,139.18,139.14,11.1690791]
[1767911878557,20.30499862,139.18,139.14,3.98235348]
[1767911878970,20.30499862,139.18,139.14,3.307842]
[1767911879979,13.12,139.18,139.15,3.98235348]
[1767911880472,20.30497107,139.18,139.14,0.67451148]
[1767911880666,20.30497107,139.18,139.12,0.67451148]
[1767911880979,3.307842,139.16,139.09,7.18939004]
[1767911881183,38.55164512,139.18,139.1,0.67451148]
[1767911881184,16.427842,139.15,139.1,0.67451148]
[1767911881481,13.12,139.15,139.11,0.67451148]
[1767911881867,3.307842,139.12,139.06,0.67451148]
[1767911882055,3.307842,139.09,139.06,0.67451148]
[1767911882255,10.45963084,139.09,139.05,0.67451148]
[1767911883075,3.307842,139.08,139.05,0.67451148]
[1767911883272,3.307842,139.08,139.03,0.71648367]
[1767911884256,7.19062342,139.07,139.03,0.71648367]
[1767911885066,20.31062342,139.07,139.03,0.71648367]
[1767911885584,23.61846542,139.07,139.03,0.71648367]
[1767911885769,41.59502398,139.07,139.02,0.71648367]
[1767911886788,7.19030245,139.08,139.04,0.71871945]
[1767911886993,7.19030245,139.08,139.05,0.71871945]
[1767911890569,10.49814445,139.08,139.05,0.71871945]
[1767911890884,7.19030245,139.08,139.05,0.71871945]
[1767911895892,3.307842,139.06,138.99,17.98641712]
[1767911896192,16.427842,139.06,139.0,3.307842]
[1767911896393,16.427842,139.06,139.01,3.307842]
[1767911896595,16.427842,139.06,138.99,80.08641712]
[1767911896893,0.6439588,139.04,138.97,93.20918283]
[1767911897196,16.427842,139.04,138.99,7.19445634]
[1767911897489,13.12,139.04,138.99,10.50229834]
[1767911897965,13.12,139.04,139.0,0.71871945]
[1767911898169,16.427842,139.04,139.0,0.71871945]
[1767911900281,10.66879023,139.03,139.0,0.71871945]
[1767911900484,0.6439588,139.02,138.98,7.91389309]
[1767911900679,0.6439588,139.02,138.99,0.71871945]
[1767911900894,10.50053422,139.03,138.99,0.71871945]
[1767911901207,0.64876388,139.02,138.99,0.71871945]
[1767911901800,11.15420075,139.03,138.99,0.71871945]
[1767911902004,7.19269222,139.03,138.99,0.71871945]
[1767911903981,3.95660588,139.01,138.97,0.71871945]
[1767911904301,10.67085517,139.0,138.97,0.71871945]
[1767911904504,10.67085517,139.0,138.96,0.71871945]
[1767911904705,7.36301317,139.0,138.96,0.71871945]
[1767911905094,7.19475716,139.0,138.96,0.71871945]
[1767911907309,7.19475716,139.0,138.96,4.02656145]
[1767911907616,7.19475716,139.0,138.97,0.71871945]
[1767911908511,18.14820925,139.01,138.97,0.71871945]
[1767911908512,25.17853392,139.01,138.97,0.71871945]
[1767911909186,25.17853392,139.01,138.98,0.71871945]
[1767911909787,0.65366653,138.99,138.95,0.1]
[1767911911106,7.19527989,138.98,138.95,0.1]
[1767911911908,29.14498816,138.98,138.95,0.81871945]
[1767911913914,0.71100975,138.97,138.95,0.1]
[1767911914801,4.01885175,138.97,138.95,0.1]
[1767911915125,0.71100975,138.97,138.95,0.1]
[1767911915416,0.71100975,138.95,138.9,0.7192137]
[1767911915593,4.01885175,138.95,138.9,0.7192137]
[1767911915794,0.71100975,138.94,138.9,0.7192137]
[1767911915998,3.307842,138.93,138.9,0.7192137]
[1767911916193,4.01885175,138.93,138.87,14.67030407]
[1767911916411,0.71100975,138.93,138.87,14.67030407]
[1767911916613,4.01885175,138.91,138.87,14.67030407]
[1767911917615,4.01885175,138.89,138.87,1e-08]
[1767911918125,0.71100975,138.87,138.81,7.20395684]
[1767911918426,4.01885175,138.87,138.82,0.7192137]
[1767911919006,0.71100975,138.87,138.83,0.7192137]
[1767911919202,4.01885175,138.89,138.84,0.1183474]
[1767911919603,4.01885175,138.89,138.84,7.32066892]
[1767911920120,11.21901835,138.89,138.84,7.32066892]
[1767911920918,4.01885175,138.86,138.81,0.1183474]
[1767911921118,4.01885175,138.86,138.81,7.32226695]
[1767911921317,0.71100975,138.85,138.81,0.1183474]
[1767911921511,11.22123849,138.85,138.81,0.1183474]
[1767911921902,11.22123849,138.85,138.8,7.32275799]
[1767911922304,0.71100975,138.85,138.81,7.32234573]
[1767911922512,4.01885175,138.85,138.81,7.32234573]
[1767911922710,0.71100975,138.82,138.78,0.5586992]
[1767911922909,4.01885175,138.82,138.78,0.5586992]
[1767911923117,0.71100975,138.82,138.78,0.5586992]
[1767911923727,4.01885175,138.82,138.78,0.4403518]
[1767911924120,4.01885175,138.82,138.76,0.1]
[1767911924121,4.01885175,138.8,138.76,0.1]
[1767911924446,0.71100975,138.8,138.76,0.1]
[1767911924609,4.01885175,138.8,138.76,0.1]
[1767911924809,0.71100975,138.8,138.76,0.1]
[1767911925210,7.20408309,138.82,138.76,0.1]
[1767911925412,3.307842,138.81,138.76,0.1]
[1767911925735,7.2041671,138.81,138.76,3.407842]
[1767911926521,0.71100975,138.82,138.78,3.307842]
[1767911926727,0.71100975,138.83,138.78,3.307842]
[1767911926916,0.71100975,138.83,138.78,16.447842]
[1767911927108,0.71100975,138.83,138.78,13.14]
[1767911927306,0.71100975,138.83,138.78,16.447842]
[1767911927798,3.307842,138.82,138.76,0.1]
[1767911928006,4.01885175,138.81,138.76,13.24]
[1767911928615,2.83981105,138.81,138.76,13.24]
[1767911928826,2.83981105,138.81,138.76,20.44648969]
[1767911929026,2.83981105,138.81,138.77,13.14]
[1767911929027,10.04412104,138.81,138.77,13.14]
[1767911929728,7.91531974,138.81,138.77,13.14]
[1767911929932,7.91531974,138.81,138.76,7.30648969]
[1767911930235,7.91531974,138.81,138.76,0.1]
[1767911930236,10.04412104,138.81,138.76,0.1]
[1767911930409,0.71100975,138.8,138.76,13.24]
[1767911930928,0.71100975,138.79,138.68,3.76094046]
[1767911931131,0.71100975,138.76,138.7,2.1288013]
[1767911931437,0.71100975,138.76,138.7,15.2688013]
[1767911931931,0.71100975,138.76,138.71,2.1288013]
[1767911932146,7.2072072,138.75,138.71,2.1288013]
[1767911933845,7.2072072,138.75,138.7,20.34968723]
[1767911934025,7.9197756,138.72,138.66,14.89071393]
[1767911934332,0.71100975,138.71,138.67,13.16]
[1767911935916,0.68100968,138.71,138.67,13.16]
[1767911936115,7.89056296,138.71,138.67,13.16]
[1767911937922,7.89056296,138.71,138.66,22.13257068]
[1767911938120,7.89056296,138.71,138.67,13.16]
[1767911938635,0.71100975,138.69,138.66,14.89071393]
[1767911938837,0.71100975,138.67,138.61,3.75952992]
[1767911939142,0.71100975,138.67,138.63,2.848015]
[1767911939353,0.71100975,138.67,138.63,0.7192137]
[1767911939654,0.71100975,138.67,138.64,13.16]
[1767911940241,2.1288013,138.68,138.64,13.8792137]
[1767911940746,0.099,138.69,138.64,13.8792137]
[1767911940747,9.43864494,138.69,138.64,13.8792137]
[1767911942524,13.02252872,138.69,138.64,13.8792137]
[1767911942920,31.04834168,138.69,138.64,13.8792137]
[1767911944039,31.04834168,138.69,138.58,0.28432314]
[1767911944040,0.1049004,138.67,138.61,0.67707592]
[1767911944244,5.71268508,138.65,138.61,0.67707592]
[1767911944830,5.71268508,138.65,138.54,47.12130076]
[1767911944831,0.68913897,138.62,138.56,5.71268508]
[1767911945157,6.40182405,138.62,138.56,5.71268508]
[1767911945454,6.40182405,138.62,138.56,18.87268508]
[1767911945639,0.68913897,138.62,138.56,13.16]
[1767911945841,7.21448668,138.61,138.56,18.87268508]
[1767911946042,7.90362565,138.61,138.56,18.87268508]
[1767911946850,0.69473311,138.65,138.6,0.70284813]
[1767911947048,6.40741819,138.63,138.58,0.70284813]
[1767911947256,7.21292556,138.64,138.53,0.1]
[1767911947257,0.69473311,138.59,138.54,0.70284813]
[1767911947444,0.69473311,138.59,138.54,6.41553321]
[1767911947636,0.69473311,138.59,138.55,0.70284813]
[1767911947831,7.21604849,138.58,138.55,0.70284813]
[1767911949974,7.21604849,138.58,138.55,6.41553321]
[1767911950158,0.69473311,138.56,138.53,0.1]
[1767911951062,0.69473311,138.56,138.51,31.65959544]
[1767911951964,0.69473311,138.54,138.51,12.78691036]
[1767911953539,7.21865299,138.53,138.51,12.78691036]
[1767911953882,7.9133861,138.53,138.51,1e-08]
[1767911954041,0.69473311,138.55,138.51,1e-08]
[1767911954242,0.69473311,138.54,138.51,1e-08]
[1767911954548,5.71268508,138.55,138.51,1e-08]
[1767911954744,0.69473311,138.55,138.51,1e-08]
[1767911955143,0.69473311,138.51,138.44,0.70284813]
[1767911955348,0.69473311,138.5,138.45,18.89268508]
[1767911955547,0.69473311,138.5,138.45,13.88284813]
[1767911955548,7.22073795,138.49,138.45,13.88284813]
[1767911955742,7.91547106,138.49,138.39,36.99521506]
[1767911955969,0.69473311,138.48,138.44,5.71268508]
[1767911956170,0.6647331,138.48,138.45,13.18]
[1767911957270,0.6647331,138.48,138.45,18.89268508]
[1767911957779,7.88613847,138.48,138.45,18.89268508]
[1767911958444,0.69473311,138.5,138.46,0.70284813]
[1767911958644,7.91475496,138.51,138.46,0.70284813]
[1767911958875,7.91475496,138.51,138.47,18.89268508]
[1767911959044,7.91475496,138.51,138.47,13.18]
[1767911960144,7.91475496,138.51,138.48,13.18]
[1767911960352,0.69473311,138.5,138.43,0.70284813]
[1767911960546,0.69473311,138.49,138.44,18.89268508]
[1767911960746,0.69473311,138.49,138.44,5.71268508]
[1767911960954,0.69473311,138.49,138.45,13.18]
[1767911961864,0.69473311,138.49,138.45,18.89268508]
[1767911962356,7.22125938,138.48,138.45,13.18]
[1767911962543,7.22125938,138.48,138.46,13.18]
[1767911962747,7.22125938,138.48,138.44,19.59553321]
[1767911963358,7.22125938,138.48,138.45,13.18]
[1767911964454,6.40741819,138.46,138.42,0.70284813]
[1767911965071,0.69473311,138.46,138.42,0.70284813]
[1767911965268,0.69473311,138.46,138.41,5.71268508]
[1767911965565,0.69473311,138.46,138.42,5.71268508]
[1767911966678,7.22282412,138.45,138.42,5.71268508]
[1767911967569,7.91755723,138.45,138.42,5.71268508]
[1767911967874,7.91755723,138.45,138.41,13.88284813]
[1767911968278,7.91755723,138.45,138.41,19.59553321]
[1767911968654,0.69473311,138.45,138.41,0.70284813]
[1767911968851,7.22252915,138.46,138.41,6.41553321]
[1767911969062,7.91726226,138.46,138.41,6.41553321]
[1767911969276,0.69473311,138.45,138.41,6.41553321]
[1767911969668,0.69473311,138.45,138.42,5.71268508]
[1767911969859,0.69473311,138.45,138.41,0.70284813]
[1767911970184,0.69473311,138.45,138.41,13.88284813]
[1767911970387,0.69473311,138.45,138.42,5.71268508]
[1767911970677,0.69473311,138.44,138.38,0.70284813]
[1767911970853,0.69473311,138.43,138.38,5.71268508]
[1767911971053,0.69473311,138.43,138.37,13.88284813]
[1767911971264,0.69473311,138.43,138.38,5.71268508]
[1767911971469,0.69473311,138.43,138.37,19.59553321]
[1767911971883,0.69473311,138.43,138.37,13.88284813]
[1767911972227,0.69473311,138.43,138.38,5.71268508]
[1767911972779,7.22438953,138.42,138.37,13.88284813]
[1767911972953,7.94362722,138.42,138.38,5.71268508]
[1767911973160,7.94362722,138.42,138.37,19.59553321]
[1767911973360,7.94362722,138.42,138.31,46.98150175]
[1767911973361,0.71923769,138.39,138.32,0.71716285]
[1767911973562,0.71923769,138.39,138.33,5.71268508]
[1767911973756,0.69367941,138.38,138.31,0.1]
[1767911973979,5.71268508,138.32,138.26,3.77050821]
[1767911974155,5.71268508,138.31,138.25,0.71716285]
[1767911974357,13.18,138.33,138.25,0.71716285]
[1767911974562,2.14429577,138.31,138.26,0.71716285]
[1767911974871,7.23059672,138.31,138.26,0.71716285]
[1767911975072,9.37489249,138.31,138.26,0.71716285]
[1767911975271,7.23059672,138.31,138.26,0.71716285]
[1767911975478,7.23059672,138.31,138.26,7.94985807]
[1767911975675,16.38221357,138.38,138.26,7.94985807]
[1767911975676,38.47450025,138.37,138.29,2.86145862]
[1767911976008,38.47450025,138.37,138.3,0.71716285]
[1767911976187,2.14429577,138.33,138.3,0.71716285]
[1767911976514,5.74117403,138.34,138.3,0.71716285]
[1767911976811,12.96987033,138.34,138.3,0.71716285]
[1767911977114,7.2286963,138.34,138.3,0.71716285]
[1767911977416,12.96987033,138.34,138.3,0.71716285]
[1767911978117,7.2286963,138.34,138.3,0.71716285]
[1767911978407,5.74117403,138.35,138.3,0.71716285]
[1767911978994,18.06665903,138.38,138.31,0.71716285]
[1767911979183,7.22714688,138.37,138.33,0.71716285]
[1767911979403,7.22714688,138.37,138.33,6.45833688]
[1767911979732,7.22714688,138.37,138.33,0.71716285]
[1767911980212,7.22714688,138.37,138.33,6.45833688]
[1767911980616,5.74117403,138.39,138.33,6.45833688]
[1767911981197,5.74117403,138.39,138.33,0.71716285]
[1767911981516,25.57151336,138.41,138.33,6.45833688]
[1767911981708,5.74117403,138.39,138.33,6.45833688]
[1767911982011,5.74117403,138.36,138.29,0.71716285]
[1767911982311,5.74117403,138.36,138.3,5.74117403]
[1767911982508,7.22804481,138.35,138.3,5.74117403]
[1767911983101,7.22804481,138.35,138.29,0.71716285]
[1767911983308,25.29815684,138.35,138.3,5.74117403]
[1767911984893,7.22770621,138.36,138.33,5.74117403]
[1767911985814,25.29651222,138.36,138.32,5.74117403]
[1767911986422,25.29651222,138.36,138.31,6.45833688]
[1767911987111,25.29651222,138.36,138.32,5.74117403]
[1767911987311,7.22770621,138.36,138.32,6.45833688]
[1767911987699,31.03768625,138.36,138.3,0.71716285]
[1767911987906,5.74117403,138.35,138.29,5.74117403]
[1767911988423,5.74117403,138.35,138.29,6.45833688]
[1767911988720,9.32900372,138.35,138.29,10.04616657]
[1767911988921,25.29998553,138.34,138.29,10.04616657]
[1767911990303,9.32900372,138.34,138.29,0.71716285]
[1767911990701,9.32900372,138.34,138.28,22.52900372]
[1767911990914,9.32900372,138.35,138.29,9.32900372]
[1767911991444,9.32900372,138.36,138.3,9.32900372]
[1767911992314,25.29815684,138.35,138.3,9.32900372]
[1767911992734,25.29815684,138.35,138.3,10.04616657]
[1767911993537,25.29815684,138.35,138.3,0.71716285]
[1767911993736,25.29815684,138.35,138.3,10.04616657]
[1767911994827,9.32900372,138.35,138.3,10.04616657]
[1767911995144,9.32900372,138.36,138.3,10.04616657]
[1767911995342,9.32900372,138.36,138.3,0.71716285]
[1767911995527,61.42506141,138.38,138.3,0.71716285]
[1767911995528,9.32900372,138.35,138.3,0.71716285]
[1767911996424,25.29998553,138.34,138.3,0.71716285]
[1767911996961,25.29998553,138.34,138.31,0.71716285]
[1767911997322,25.29998553,138.34,138.3,9.32900372]
[1767911997559,25.29998553,138.34,138.3,10.04616657]
[1767911997726,7.22808779,138.35,138.32,9.32900372]
[1767911997925,7.22808779,138.35,138.32,10.04616657]
[1767911998631,18.0690599,138.36,138.32,10.04616657]
[1767911999334,7.22700007,138.37,138.34,10.04616657]
[1767912000232,9.32900372,138.35,138.28,0.71716285]
[1767912000534,25.30261951,138.33,138.28,10.04616657]
[1767912000738,25.30261951,138.33,138.29,9.32900372]
[1767912002157,25.30261951,138.33,138.28,10.04616657]
[1767912002354,25.30261951,138.33,138.29,9.32900372]
[1767912002650,7.22856729,138.34,138.29,0.70526605]
[1767912002859,7.22856729,138.34,138.29,10.03426977]
[1767912003356,7.22856729,138.34,138.28,0.70526605]
[1767912003659,25.29998553,138.34,138.29,9.32900372]
[1767912004154,9.32900372,138.33,138.28,10.03426977]
[1767912004657,34.62898925,138.34,138.3,0.70526605]
[1767912004956,34.62898925,138.34,138.29,0.70526605]
[1767912014462,25.29998553,138.34,138.29,10.03426977]
[1767912015567,25.29632841,138.36,138.3,0.67688129]
[1767912015873,9.32900372,138.35,138.29,10.00588501]
[1767912016064,9.32900372,138.35,138.29,0.67688129]
[1767912016262,9.32900372,138.34,138.27,0.67688129]
[1767912016567,9.32900372,138.34,138.28,0.67688129]
[1767912017563,25.30181449,138.33,138.28,0.67688129]
[1767912018565,3.350398,138.32,138.26,0.67688129]
[1767912019454,25.30181449,138.33,138.26,0.67688129]
[1767912019656,3.350398,138.32,138.26,0.67688129]
[1767912020153,3.350398,138.32,138.27,0.67688129]
[1767912020555,3.350398,138.32,138.26,3.350398]
[1767912020755,3.350398,138.32,138.26,4.02727929]
[1767912020971,3.350398,138.32,138.26,3.350398]
[1767912021361,3.350398,138.32,138.26,4.02727929]
[1767912023287,3.350398,138.32,138.25,7.23324995]
[1767912023581,3.350398,138.32,138.25,11.26052924]
[1767912023766,3.350398,138.32,138.26,0.67688129]
[1767912024291,7.22908985,138.33,138.29,0.67688129]
[1767912024965,25.29632841,138.36,138.3,0.67688129]
[1767912025162,28.64672641,138.36,138.3,0.67688129]
[1767912025580,25.29632841,138.36,138.31,0.67688129]
[1767912025969,7.2275224,138.36,138.32,0.67688129]
[1767912026171,3.350398,138.39,138.33,0.67688129]
[1767912026479,3.350398,138.39,138.34,0.67688129]
[1767912026675,7.22595563,138.39,138.35,0.67688129]
[1767912026980,7.22551505,138.4,138.36,0.67688129]
[1767912027278,7.2251321,138.41,138.38,0.67688129]
[1767912027779,10.57441406,138.43,138.38,0.67688129]
[1767912027982,7.22401606,138.43,138.39,0.67688129]
[1767912028175,10.57441406,138.43,138.39,0.67688129]
[1767912028564,16.54040644,138.43,138.39,0.67688129]
[1767912028871,9.31639038,138.44,138.39,0.67688129]
[1767912029183,16.5392145,138.45,138.4,0.67688129]
[1767912029382,9.31639038,138.44,138.4,0.67688129]
[1767912029562,16.5392145,138.45,138.4,0.67688129]
[1767912029764,16.5392145,138.45,138.41,0.67688129]
[1767912030063,7.22241837,138.46,138.42,0.67688129]
[1767912030263,16.73831949,138.47,138.42,0.67688129]
[1767912030474,16.73831949,138.47,138.43,0.67688129]
[1767912030475,0.2,138.47,138.43,0.67688129]
[1767912030678,0.2,138.47,138.44,0.67688129]
[1767912030877,0.2,138.47,138.44,0.61688134]
[1767912031070,0.2,138.47,138.44,9.31639038]
[1767912031372,0.2,138.47,138.46,9.31639038]
[1767912031574,0.2,138.49,138.46,9.31639038]
[1767912031775,7.42079536,138.49,138.43,20.42374414]
[1767912031974,7.42079536,138.49,138.45,9.31639038]
[1767912032462,7.42079536,138.49,138.46,9.31639038]
[1767912032871,0.2,138.49,138.47,10.02104433]
[1767912033070,0.2,138.49,138.48,10.02104433]
[1767912033278,0.2,138.49,138.48,9.31639038]
[1767912033481,0.2,138.51,138.48,9.31639038]
[1767912033686,0.2,138.51,138.5,9.31639038]
[1767912034075,0.2,138.51,138.5,9.2837882]
[1767912034283,7.2185304,138.54,138.51,9.2563904]
[1767912034680,7.47778302,138.55,138.51,9.2563904]
[1767912034874,18.30151528,138.57,138.52,9.31639038]
[1767912035193,18.30151528,138.57,138.51,0.70465395]
[1767912035194,7.47675283,138.57,138.53,9.31639038]
[1767912035981,0.099,138.56,138.51,9.31639038]
[1767912036472,0.099,138.56,138.52,9.31639038]
[1767912037975,0.099,138.56,138.53,9.31639038]
[1767912038182,7.31575288,138.57,138.54,9.31639038]
[1767912038370,7.21675288,138.57,138.54,10.02104433]
[1767912038578,7.21617607,138.58,138.56,9.31639038]
[1767912038784,7.21565777,138.59,138.56,9.25639043]
[1767912039177,7.21565777,138.59,138.56,9.96104438]
[1767912039388,25.25122586,138.61,138.57,9.31639038]
[1767912039896,7.21448668,138.61,138.58,9.31639038]
[1767912041272,25.24742191,138.63,138.58,10.02104433]
[1767912041679,25.24742191,138.63,138.59,10.02104433]
[1767912042391,25.24742191,138.63,138.6,10.02104433]
[1767912042795,7.21344586,138.63,138.6,10.02104433]
[1767912043189,38.52349714,138.65,138.6,10.02104433]
[1767912043393,18.13059361,138.65,138.61,10.02104433]
[1767912043701,18.03159361,138.65,138.62,9.31639038]
[1767912044591,25.23977788,138.67,138.63,0.70465395]
[1767912044796,25.39817787,138.67,138.63,9.31639038]
[1767912044990,0.25898395,138.66,138.61,9.31639038]
[1767912045191,0.25898395,138.66,138.62,9.31639038]
[1767912045982,0.25898395,138.66,138.63,9.31639038]
[1767912046494,0.25898395,138.66,138.62,9.31639038]
[1767912046495,7.21240533,138.65,138.62,9.31639038]
[1767912046807,7.21240533,138.65,138.62,10.02104433]
[1767912047598,7.21240533,138.65,138.63,9.31639038]
[1767912047799,25.33877788,138.67,138.63,9.31639038]
[1767912048189,25.23977788,138.67,138.64,0.70465395]
[1767912050707,25.23977788,138.67,138.64,6.41702916]
[1767912051113,7.21101587,138.68,138.63,0.70465395]
[1767912051331,7.21101587,138.68,138.64,6.41702916]
[1767912051613,7.21101587,138.68,138.65,5.71237521]
[1767912051818,7.21101587,138.68,138.65,5.65958273]
[1767912052198,7.21101587,138.68,138.66,6.41702916]
[1767912052503,20.21961076,138.69,138.66,6.41702916]
[1767912054406,20.21961076,138.69,138.67,6.41702916]
[1767912054801,20.1507676,138.69,138.66,5.71237521]
[1767912055806,38.17658056,138.69,138.66,5.71237521]
[1767912058396,19.49448106,138.69,138.67,5.71237521]
[1767912059319,12.28413269,138.69,138.68,5.71237521]
[1767912060302,12.28413269,138.69,138.67,6.41702916]
[1767912060509,7.20952019,138.71,138.68,6.41702916]
[1767912060704,7.2087879,138.72,138.69,5.71237521]
[1767912061098,7.86507444,138.72,138.69,5.71237521]
[1767912061911,7.86507444,138.72,138.68,5.71237521]
[1767912062611,7.86507444,138.72,138.69,5.71237521]
[1767912063009,7.86507444,138.72,138.57,36.08125168]
[1767912063010,0.7156105,138.69,138.57,36.08125168]
[1767912063220,0.7156105,138.66,138.58,13.16]
[1767912063405,0.7156105,138.66,138.62,5.71237521]
[1767912064408,0.7156105,138.65,138.56,18.04184723]
[1767912064616,0.7156105,138.62,138.52,36.09526494]
[1767912064929,6.42798571,138.61,138.55,5.71237521]
[1767912065320,6.42798571,138.61,138.56,5.71237521]
[1767912065829,6.42798571,138.61,138.56,12.92895782]
[1767912066136,6.42798571,138.61,138.55,5.71237521]
[1767912066137,0.7156105,138.6,138.55,5.71237521]
[1767912067622,0.67078061,138.59,138.55,5.71237521]
[1767912067820,0.6407806,138.59,138.55,5.71237521]
[1767912068026,7.2155269,138.6,138.55,5.74237522]
[1767912069814,7.88630751,138.6,138.55,5.74237522]
[1767912072131,7.88630751,138.6,138.55,12.95998191]
[1767912072638,7.88630751,138.6,138.56,0.03000001]
[1767912077219,10.02119993,138.6,138.56,0.03000001]
[1767912080649,0.67078061,138.56,138.5,0.03000001]
[1767912080938,2.13489242,138.55,138.51,0.70078062]
[1767912081148,2.13489242,138.56,138.51,0.70078062]
[1767912081555,2.13489242,138.56,138.51,7.92034389]
[1767912081862,2.13489242,138.56,138.51,0.70078062]
[1767912082029,2.13489242,138.56,138.5,2.83567304]
[1767912082646,2.13489242,138.56,138.51,7.92045311]
[1767912082647,9.35228153,138.56,138.51,7.92045311]
[1767912082843,10.02306214,138.56,138.51,7.92045311]
[1767912083032,10.02306214,138.56,138.51,0.70078062]
[1767912084550,10.02306214,138.56,138.46,98.49452155]
[1767912084551,0.67078061,138.51,138.45,0.70078062]
[1767912084735,2.80567303,138.5,138.45,0.70078062]
[1767912084938,0.67078061,138.5,138.45,0.70078062]
[1767912085141,0.67078061,138.5,138.45,2.83567304]
[1767912085846,0.67078061,138.5,138.45,0.70078062]
[1767912086048,0.67078061,138.49,138.44,2.13489242]
[1767912086243,2.80567303,138.49,138.43,10.05948668]
[1767912086449,7.22125938,138.48,138.44,0.70078062]
[1767912087452,7.21936662,138.52,138.48,0.70078062]
[1767912087758,9.35425904,138.52,138.48,0.70078062]
[1767912087951,2.80567303,138.5,138.46,0.70078062]
[1767912088540,0.67078061,138.5,138.46,0.70078062]
[1767912088754,2.80567303,138.5,138.46,0.70078062]
[1767912089059,7.89137018,138.5,138.46,0.70078062]
[1767912089231,10.0262626,138.5,138.46,0.70078062]
[1767912089431,7.89137018,138.5,138.46,0.70078062]
[1767912091138,7.89137018,138.5,138.46,10.05791389]
[1767912093358,0.14216157,138.54,138.47,2.83567304]
[1767912093359,2.7906575,138.53,138.47,2.83567304]
[1767912093559,0.65576508,138.52,138.47,2.83567304]
[1767912093764,0.65576508,138.53,138.48,2.83567304]
[1767912094059,2.7906575,138.53,138.48,0.70078062]
[1767912094257,0.65576508,138.52,138.47,2.13489242]
[1767912094462,0.65576508,138.52,138.48,2.13489242]
[1767912094847,0.65576508,138.52,138.48,9.35592301]
[1767912095658,0.65576508,138.52,138.49,2.13489242]
[1767912095860,0.65576508,138.52,138.48,7.22103059]
[1767912095861,0.65576508,138.52,138.48,9.35592301]
[1767912096057,0.65576508,138.52,138.48,7.22103059]
[1767912096263,0.65576508,138.52,138.48,9.35592301]
[1767912096767,0.65576508,138.52,138.48,10.05670363]
[1767912097268,7.21897999,138.53,138.48,10.05670363]
[1767912097269,7.87396633,138.54,138.49,2.83567304]
[1767912097452,0.65576508,138.54,138.49,2.83567304]
[1767912097768,0.65576508,138.54,138.5,0.70078062]
[1767912098463,0.65576508,138.54,138.5,7.92064982]
[1767912099879,0.65576508,138.54,138.5,10.05554224]
[1767912100271,20.39728908,138.56,138.51,0.70078062]
[1767912100478,7.87237722,138.57,138.52,2.83567304]
[1767912100972,9.35150456,138.57,138.52,0.70078062]
[1767912101272,0.65576508,138.58,138.53,2.83567304]
[1767912101577,7.87188427,138.58,138.53,2.83567304]
[1767912101980,7.87188427,138.58,138.54,0.70078062]
[1767912102183,7.21611919,138.58,138.54,0.70078062]
[1767912102563,7.87134874,138.59,138.54,7.91854802]
[1767912102764,10.00624116,138.59,138.54,7.91854802]
[1767912102975,7.87134874,138.59,138.55,0.70078062]
[1767912106283,0.65576508,138.59,138.55,7.91826383]
[1767912110183,7.87133934,138.59,138.55,7.91826383]
[1767912110362,10.00586442,138.6,138.56,0.70078062]
[1767912110561,7.870972,138.6,138.56,0.70078062]
[1767912111281,0.65576508,138.6,138.56,0.70078062]
[1767912112688,0.65576508,138.6,138.56,7.91770242]
[1767912113472,0.65576508,138.59,138.55,11.25385832]
[1767912117073,0.65576508,138.6,138.56,4.03639222]
[1767912119504,0.65576508,138.6,138.56,11.25314353]